bitfinex/quotes_ETHUSD_20241104
["timestamp","ask_amount","ask_price","bid_price","bid_amount"]
[1730719581368,4.04082,2474.8,2474.4,0.6623]
[1730719581578,4.04082,2474.8,2474.4,1.54296422]
[1730719581768,7.04042,2475.0,2474.5,4.23069292]
[1730719582118,4.04042,2475.0,2474.6,0.85177051]
[1730719582398,4.04042,2475.0,2474.7,0.18947051]
[1730719582579,4.04042,2475.0,2474.6,0.6623]
[1730719582778,4.04042,2475.0,2474.7,0.6598166]
[1730719583098,0.7517,2475.3,2474.8,0.18948122]
[1730719583279,4.04953,2475.6,2474.8,0.18948122]
[1730719583280,4.04009,2475.2,2474.8,0.6623]
[1730719583896,4.03997,2475.3,2474.8,0.6623]
[1730719584603,4.0401,2475.2,2474.8,4.70294]
[1730719584757,4.0401,2475.2,2474.9,0.5173289]
[1730719584959,4.04035,2475.1,2474.8,0.6623]
[1730719585196,4.04035,2475.1,2474.9,0.18955606]
[1730719585367,4.04042,2475.0,2474.8,0.6623]
[1730719585628,4.04042,2475.0,2474.9,0.18958454]
[1730719587437,4.04009,2475.2,2474.9,0.18958454]
[1730719587638,4.04009,2475.2,2475.0,0.85188454]
[1730719587838,4.04024,2475.1,2475.0,0.6623]
[1730719588060,4.04024,2475.1,2475.0,0.85201423]
[1730719588929,4.04024,2475.1,2475.0,0.18971423]
[1730719589135,4.848273,2475.1,2475.0,0.18971423]
[1730719589340,4.848273,2475.1,2474.7,0.6623]
[1730719589654,4.04064,2474.9,2474.8,0.49379271]
[1730719589864,8.0806,2475.1,2474.8,0.49379271]
[1730719590024,8.0806,2475.1,2474.9,0.1899117]
[1730719590227,4.04024,2475.1,2475.0,0.1899117]
[1730719592124,4.82814,2475.1,2475.0,0.1899117]
[1730719592365,5.714965,2475.1,2475.0,0.1899117]
[1730719592660,4.82814,2475.1,2475.0,0.49417225]
[1730719592998,4.04024,2475.1,2475.0,0.49417225]
[1730719593863,7.79764,2475.1,2475.0,0.49417225]
[1730719594035,7.79764,2475.1,2475.0,0.1899117]
[1730719594363,8.982415,2475.1,2475.0,0.1899117]
[1730719594565,9.532415,2475.1,2475.0,0.1899117]
[1730719595066,13.37920581,2475.1,2475.0,0.1899117]
[1730719595280,13.37920581,2475.1,2475.0,1.7e-06]
[1730719595457,4.83478,2474.4,2474.3,0.31646581]
[1730719595635,5.722383,2474.4,2474.3,0.68624274]
[1730719596179,5.722383,2474.4,2474.2,0.0610922]
[1730719596180,4.04154,2474.3,2474.2,0.0610922]
[1730719596468,4.04154,2474.3,2474.2,0.74777934]
[1730719598700,7.04154,2474.3,2474.2,1.06608341]
[1730719598978,8.8799323,2474.3,2474.2,0.74777934]
[1730719599492,9.7187323,2474.3,2474.2,0.0610922]
[1730719599780,9.7187323,2474.3,2474.2,0.74846973]
[1730719600853,9.7187323,2474.3,2474.2,9.73e-06]
[1730719601265,7.04269,2473.6,2473.5,0.31827602]
[1730719601590,7.04269,2473.6,2472.8,0.6623]
[1730719601591,7.04301,2473.4,2473.3,0.31827602]
[1730719601888,7.04301,2473.4,2473.2,0.31827602]
[1730719602047,4.04301,2473.4,2473.2,0.31827602]
[1730719602381,5.529535,2473.6,2473.3,0.6623]
[1730719602382,4.04286,2473.5,2473.3,0.6623]
[1730719602586,4.04301,2473.4,2473.3,0.6623]
[1730719603455,4.04286,2473.5,2473.3,0.6623]
[1730719603773,4.04318,2473.3,2473.2,0.31783934]
[1730719603937,4.04318,2473.3,2473.1,0.31783934]
[1730719604374,4.04334,2473.2,2473.1,0.31783934]
[1730719604573,3.19957245,2473.2,2473.1,0.31783934]
[1730719605524,3.19957245,2473.2,2473.0,0.37893154]
[1730719606091,4.0435,2473.1,2473.0,0.37893154]
[1730719606309,4.0435,2473.1,2473.0,0.0610922]
[1730719607123,3.19957245,2473.2,2473.0,0.0610922]
[1730719607282,3.19957245,2473.2,2473.1,0.19013605]
[1730719608220,4.0032587,2473.2,2473.1,0.19013605]
[1730719608679,4.0435,2473.1,2473.0,0.0610922]
[1730719611684,4.0435,2473.1,2473.0,0.55502655]
[1730719613834,4.0435,2473.1,2473.0,0.0610922]
[1730719614436,4.8575,2473.1,2473.0,0.0610922]
[1730719614637,6.37895263,2473.1,2473.0,0.0610922]
[1730719614843,9.37895263,2473.1,2473.0,0.0610922]
[1730719615006,9.38895263,2473.1,2473.0,0.0610922]
[1730719616250,9.39895263,2473.1,2473.0,0.0610922]
[1730719622567,9.39895263,2473.1,2473.0,2.2e-06]
[1730719624833,7.04465,2472.4,2472.3,0.18929453]
[1730719625573,7.60465,2472.4,2472.3,0.18929453]
[1730719625763,3.55,2472.3,2471.8,0.37879235]
[1730719625965,4.04511,2472.2,2471.9,0.87115099]
[1730719626137,4.04521,2472.1,2472.0,0.49235864]
[1730719628355,4.04521,2472.1,2472.0,0.87160558]
[1730719628526,4.04504,2472.2,2472.0,0.49235864]
[1730719628714,7.04504,2472.2,2472.1,0.49303983]
[1730719629557,7.04504,2472.2,2472.1,1.15533983]
[1730719630147,7.04504,2472.2,2472.1,1.53498788]
[1730719632100,4.04504,2472.2,2472.1,1.53498788]
[1730719632581,4.04504,2472.2,2472.1,1.53594063]
[1730719632782,4.04472,2472.4,2472.1,1.53594063]
[1730719633006,4.04451,2472.5,2472.2,0.87363425]
[1730719633204,4.04465,2472.4,2472.3,0.87363425]
[1730719633984,6.191667,2472.4,2472.3,0.87363425]
[1730719634175,9.191667,2472.4,2472.3,0.49377125]
[1730719634861,9.201667,2472.4,2472.3,0.49377125]
[1730719635780,4.04563,2471.8,2471.7,0.0610922]
[1730719636078,4.04563,2471.8,2471.7,0.9358217]
[1730719636279,3.0,2472.1,2471.7,1.5981217]
[1730719636494,4.04531,2472.0,2471.8,0.8747295]
[1730719636687,4.04531,2472.0,2471.9,0.8747295]
[1730719637464,0.7881,2472.4,2471.9,0.8747295]
[1730719637667,3.0,2472.2,2472.0,0.8747295]
[1730719637863,4.04532,2472.0,2471.7,0.7233922]
[1730719638191,3.0,2472.2,2471.8,0.87549876]
[1730719638393,0.7881,2472.4,2471.9,0.87549876]
[1730719638394,4.04521,2472.1,2471.9,0.87549876]
[1730719638624,4.04521,2472.1,2472.0,0.87549876]
[1730719639098,4.04521,2472.1,2471.7,0.7233922]
[1730719639294,4.04521,2472.1,2472.0,0.87622347]
[1730719639620,7.04474,2472.4,2472.0,1.53852347]
[1730719639936,7.04474,2472.4,2472.1,0.87622347]
[1730719640127,7.04474,2472.4,2472.2,0.87622347]
[1730719640128,4.04481,2472.3,2472.2,0.87622347]
[1730719640731,4.84089,2472.8,2472.2,0.87622347]
[1730719640902,4.04468,2472.4,2472.3,0.87622347]
[1730719642128,4.0445,2472.5,2472.3,1.53852347]
[1730719642438,4.04465,2472.4,2472.3,0.6623]
[1730719642591,4.04465,2472.4,2472.3,1.53871017]
[1730719643022,4.04465,2472.4,2472.3,0.87641017]
[1730719645541,4.853565,2472.4,2472.3,0.87641017]
[1730719645792,5.656565,2472.4,2472.3,0.87641017]
[1730719646245,4.853565,2472.4,2472.3,0.87641017]
[1730719647767,4.04465,2472.4,2472.3,0.87641017]
[1730719648074,4.04457,2472.5,2472.3,1.53871017]
[1730719648370,4.04457,2472.5,2472.4,0.87641017]
[1730719650063,4.04457,2472.5,2472.4,1.19439074]
[1730719650245,4.04457,2472.5,2472.4,0.87641017]
[1730719652984,4.04465,2472.4,2472.3,0.6623]
[1730719653151,4.04465,2472.4,2472.1,0.98035681]
[1730719653152,4.0449,2472.3,2472.1,0.98035681]
[1730719653346,4.0449,2472.3,2472.2,0.87766345]
[1730719655491,4.853858,2472.3,2472.2,0.87766345]
[1730719655701,4.853858,2472.3,2472.2,0.49604852]
[1730719656348,7.853858,2472.3,2471.8,0.16360761]
[1730719656549,3.808958,2472.3,2471.9,0.87770526]
[1730719656855,3.808958,2472.3,2472.0,0.87769352]
[1730719656856,4.04514,2472.1,2472.0,0.87769352]
[1730719657073,4.04514,2472.1,2472.0,0.49607215]
[1730719659878,4.04514,2472.1,2471.7,0.7233922]
[1730719660087,4.04514,2472.1,2472.0,0.19076849]
[1730719660387,4.04514,2472.1,2472.0,0.4960207]
[1730719663604,4.04514,2472.1,2472.0,0.49601042]
[1730719664896,4.9350598,2472.1,2472.0,0.49601042]
[1730719670123,5.7527598,2472.1,2472.0,0.49601042]
[1730719670418,5.7527598,2472.1,2472.0,0.19076454]
[1730719670419,8.7527598,2472.1,2472.0,0.19076454]
[1730719670825,4.04563,2471.8,2471.7,0.0610922]
[1730719671038,7.87473,2471.8,2471.7,0.25188287]
[1730719671187,8.42473,2471.8,2471.7,0.0610922]
[1730719671691,10.08770554,2471.8,2471.7,0.0610922]
[1730719671897,10.09770554,2471.8,2471.7,0.0610922]
[1730719672099,9.98703015,2471.8,2471.7,0.0610922]
[1730719673434,9.97703015,2471.8,2471.7,0.0610922]
[1730719673730,4.04563,2471.8,2471.7,0.0610922]
[1730719674289,4.04563,2471.8,2471.7,0.25156579]
[1730719674483,4.04563,2471.8,2471.7,0.25155823]
[1730719676424,4.04563,2471.8,2471.7,0.0610922]
[1730719678823,4.04563,2471.8,2471.7,0.25154064]
[1730719679745,4.04563,2471.8,2471.7,0.25154283]
[1730719679947,4.0455,2471.9,2471.7,0.25154283]
[1730719680163,4.04547,2471.9,2471.8,0.6623]
[1730719680853,4.04547,2471.9,2471.7,0.0610922]
[1730719681006,4.04563,2471.8,2471.7,0.0610922]
[1730719681210,4.04563,2471.8,2471.7,0.25156588]
[1730719681450,4.04547,2471.9,2471.7,0.25156588]
[1730719681655,8.09106,2471.9,2471.8,0.19047368]
[1730719682144,8.09106,2471.9,2471.7,0.0610922]
[1730719682348,4.04547,2471.9,2471.7,0.0610922]
[1730719682525,4.04547,2471.9,2471.8,0.19050016]
[1730719683322,4.04547,2471.9,2471.7,0.0610922]
[1730719683323,4.84483,2471.8,2471.7,0.0610922]
[1730719683665,4.84483,2471.8,2471.7,0.25162002]
[1730719683825,4.84483,2471.8,2471.7,0.0610922]
[1730719684024,4.84483,2471.8,2471.7,0.25162369]
[1730719684459,4.84483,2471.8,2471.7,0.2516229]
[1730719685324,4.04563,2471.8,2471.7,0.2516229]
[1730719685510,4.04563,2471.8,2471.7,0.0610922]
[1730719685717,4.04563,2471.8,2471.7,0.25164332]
[1730719685950,4.93384,2471.8,2471.7,0.25165615]
[1730719686810,4.93384,2471.8,2471.7,0.25166152]
[1730719687215,7.93384,2471.8,2471.7,0.0610922]
[1730719687414,8.71434,2471.8,2471.7,0.0610922]
[1730719689364,9.26434,2471.8,2471.7,0.0610922]
[1730719692061,7.93384,2471.8,2471.7,0.0610922]
[1730719696528,8.48384,2471.8,2471.7,0.0610922]
[1730719697770,9.29104,2471.8,2471.7,0.0610922]
[1730719708305,9.29104,2471.8,2471.7,0.05969646]
[1730719715334,11.83785329,2471.8,2471.7,0.05969646]
[1730719715502,9.29104,2471.8,2471.7,0.05969646]
[1730719721942,9.29104,2471.8,2471.7,0.25020411]
[1730719722465,9.29104,2471.8,2471.7,0.25021058]
[1730719722761,9.29104,2471.8,2471.7,0.05969646]
[1730719723264,9.29104,2471.8,2471.7,0.2502128]
[1730719723773,9.29104,2471.8,2471.7,0.05969646]
[1730719725363,9.29104,2471.8,2471.7,0.25026343]
[1730719725672,9.29104,2471.8,2471.7,0.05969646]
[1730719725826,11.84017091,2471.8,2471.7,0.05969646]
[1730719726031,9.29104,2471.8,2471.7,0.05969646]
[1730719726831,11.84017091,2471.8,2471.7,0.05969646]
[1730719732768,9.29104,2471.8,2471.7,0.05969646]
[1730719733997,11.84193057,2471.8,2471.7,0.05969646]
[1730719735203,9.29104,2471.8,2471.7,0.05969646]
[1730719735363,7.04563,2471.8,2471.7,0.05969646]
[1730719735563,7.04563,2471.8,2471.7,0.25029986]
[1730719737711,7.04563,2471.8,2471.7,0.05969646]
[1730719738026,7.04563,2471.8,2471.7,0.25027183]
[1730719738736,7.04563,2471.8,2471.7,0.05969646]
[1730719738949,7.04563,2471.8,2471.7,0.25026998]
[1730719739743,8.23186,2471.8,2471.7,0.25026998]
[1730719740824,8.23186,2471.8,2471.7,0.05969646]
[1730719741025,8.23186,2471.8,2471.7,0.25025541]
[1730719742052,8.78186,2471.8,2471.7,0.25026222]
[1730719743265,8.78186,2471.8,2471.7,0.25026462]
[1730719744069,8.78186,2471.8,2471.7,0.25026207]
[1730719744362,8.78186,2471.8,2471.7,0.05969646]
[1730719748564,8.78186,2471.8,2471.7,0.25026184]
[1730719748740,11.33279077,2471.8,2471.7,0.25026184]
[1730719749651,11.33279077,2471.8,2471.7,0.05969646]
[1730719749850,8.78186,2471.8,2471.7,0.05969646]
[1730719753136,11.33276822,2471.8,2471.7,0.05969646]
[1730719753731,8.78186,2471.8,2471.7,0.05969646]
[1730719753934,11.33280808,2471.8,2471.7,0.05969646]
[1730719754169,11.33290931,2471.8,2471.7,0.05969646]
[1730719754346,8.78186,2471.8,2471.7,0.05969646]
[1730719755359,7.59563,2471.8,2471.7,0.05969646]
[1730719755561,10.14670472,2471.8,2471.7,0.05969646]
[1730719756096,7.59563,2471.8,2471.7,0.05969646]
[1730719760300,9.59698651,2471.8,2471.7,0.05969646]
[1730719760858,7.04563,2471.8,2471.7,0.05969646]
[1730719762365,9.597016,2471.8,2471.7,0.05969646]
[1730719763386,7.04563,2471.8,2471.7,0.05969646]
[1730719764396,9.59709207,2471.8,2471.7,0.05969646]
[1730719764599,9.59709207,2471.8,2471.7,1.90284606]
[1730719764600,4.04563,2471.8,2471.7,1.90284606]
[1730719764807,4.04556,2471.9,2471.7,2.87011775]
[1730719765113,4.04556,2471.9,2471.8,0.495565]
[1730719766520,4.04556,2471.9,2471.8,1.157865]
[1730719766816,4.04556,2471.9,2471.8,1.15733036]
[1730719767607,4.04556,2471.9,2471.8,0.85268757]
[1730719767822,4.854647,2471.9,2471.8,0.85268757]
[1730719768029,4.854647,2471.9,2471.8,0.19038757]
[1730719770514,4.04563,2471.8,2471.7,0.05969646]
[1730719770725,4.04563,2471.8,2471.7,0.24998059]
[1730719773224,4.04563,2471.8,2471.7,0.05969646]
[1730719773727,4.04563,2471.8,2471.7,0.24996733]
[1730719774032,4.04563,2471.8,2471.7,0.05969646]
[1730719774327,4.04563,2471.8,2471.7,0.24996295]
[1730719777597,4.04563,2471.8,2471.7,0.05969646]
[1730719777795,4.04563,2471.8,2471.7,0.24996528]
[1730719778795,8.25928,2471.8,2471.7,0.24996528]
[1730719778996,8.25928,2471.8,2471.7,0.05969646]
[1730719779200,8.25928,2471.8,2471.7,0.24996535]
[1730719780005,8.25928,2471.8,2471.7,0.24996841]
[1730719781502,8.25928,2471.8,2471.7,0.05969646]
[1730719781699,8.25928,2471.8,2471.7,0.24999187]
[1730719784139,9.08608,2471.8,2471.7,0.05969646]
[1730719788583,9.08608,2471.8,2471.7,0.25004625]
[1730719790108,9.08608,2471.8,2471.7,0.25006233]
[1730719790512,9.63608,2471.8,2471.7,0.25006233]
[1730719790712,9.63608,2471.8,2471.7,0.05969646]
[1730719800482,8.80928,2471.8,2471.7,0.05969646]
[1730719805457,9.56768,2471.8,2471.7,0.05969646]
[1730719807266,12.11612501,2471.8,2471.7,0.05969646]
[1730719807467,9.56768,2471.8,2471.7,0.05969646]
[1730719807673,12.12612501,2471.8,2471.7,6.46e-06]
[1730719807892,9.58768,2471.8,2471.7,6.46e-06]
[1730719808714,11.24023629,2471.8,2471.7,6.46e-06]
[1730719810061,9.58768,2471.8,2471.7,6.46e-06]
[1730719810262,12.56066096,2471.8,2471.7,6.46e-06]
[1730719810463,9.58768,2471.8,2471.7,6.46e-06]
[1730719812496,14.21254347,2471.8,2471.7,6.46e-06]
[1730719812699,12.55995536,2471.8,2471.7,6.46e-06]
[1730719813000,11.24023629,2471.8,2471.7,6.46e-06]
[1730719813207,9.58768,2471.8,2471.7,6.46e-06]
[1730719814704,11.24023629,2471.8,2471.7,6.46e-06]
[1730719816675,14.75090512,2471.8,2471.7,6.46e-06]
[1730719817069,11.24023629,2471.8,2471.7,6.46e-06]
[1730719817266,15.45303889,2471.8,2471.7,6.46e-06]
[1730719817971,0.8017,2470.9,2470.5,0.0610922]
[1730719818162,4.59759,2470.6,2470.5,0.0610922]
[1730719818640,7.59759,2470.6,2470.5,0.0610922]
[1730719820073,8.34002802,2470.6,2470.5,0.0610922]
[1730719820325,10.79608431,2470.6,2470.5,0.0610922]
[1730719821305,8.34002802,2470.6,2470.5,0.0610922]
[1730719821515,4.04746,2470.7,2470.5,0.7233922]
[1730719821674,4.04756,2470.7,2470.5,0.7233922]
[1730719822512,4.04729,2470.8,2470.5,0.7233922]
[1730719822692,4.04729,2470.8,2470.7,0.6623]
[1730719823015,7.04729,2470.8,2470.7,0.89989485]
[1730719823223,4.04705,2471.0,2470.8,0.6623]
[1730719823224,4.04701,2471.0,2470.8,0.6623]
[1730719823720,3.35293906,2471.7,2470.9,0.6623]
[1730719823721,4.04681,2471.1,2470.9,0.6623]
[1730719825282,4.04694,2471.0,2470.9,0.6623]
[1730719825619,4.04684,2471.1,2470.9,0.6623]
[1730719825848,4.04653,2471.3,2471.0,2.31485629]
[1730719825981,4.04638,2471.4,2471.1,0.6623]
[1730719826191,4.04652,2471.3,2471.1,0.6623]
[1730719827895,4.04661,2471.2,2471.1,0.6623]
[1730719829429,4.04652,2471.3,2471.1,0.6623]
[1730719830412,8.09309,2471.3,2471.1,0.6623]
[1730719830637,4.04652,2471.3,2471.1,0.6623]
[1730719830840,8.09308,2471.3,2471.1,0.6623]
[1730719831032,4.04652,2471.3,2471.1,0.6623]
[1730719831519,4.04636,2471.4,2471.2,0.6623]
[1730719834412,4.04624,2471.5,2471.2,0.6623]
[1730719835341,4.04586,2471.7,2471.4,0.6623]
[1730719835546,4.04547,2471.9,2471.5,4.12696]
[1730719835750,4.04547,2471.9,2471.6,1.20103443]
[1730719835914,1.37677392,2472.0,2471.8,0.6623]
[1730719838163,1.37677392,2472.0,2471.9,0.6623]
[1730719839656,4.04425,2472.7,2472.4,0.6623]
[1730719839856,4.04393,2472.9,2472.5,4.70678]
[1730719840017,8.08792,2472.9,2472.5,4.49941429]
[1730719840213,4.0441,2472.8,2472.5,4.49941429]
[1730719840417,4.04389,2472.9,2472.5,9.14120102]
[1730719840418,4.04384,2472.9,2472.5,9.14120102]
[1730719840718,4.044,2472.8,2472.5,5.09673102]
[1730719840943,4.044,2472.8,2472.5,5.17761207]
[1730719841184,8.08811,2472.8,2472.5,5.17761207]
[1730719841355,4.044,2472.8,2472.5,5.09673102]
[1730719841560,4.04381,2473.0,2472.7,0.6623]
[1730719841764,0.775,2473.3,2472.7,0.6623]
[1730719841765,4.04385,2472.9,2472.7,0.6623]
[1730719842063,4.04399,2472.8,2472.7,0.6623]
[1730719842245,4.04385,2472.9,2472.7,0.6623]
[1730719842628,4.04364,2473.1,2472.7,0.6623]
[1730719842962,4.04394,2472.9,2472.7,0.6623]
[1730719843355,4.04369,2473.0,2472.7,0.6623]
[1730719843657,4.04314,2473.4,2472.9,4.70612]
[1730719843858,4.04285,2473.5,2473.2,0.6623]
[1730719844222,4.0431,2473.4,2473.2,0.6623]
[1730719844428,8.08585,2473.5,2473.2,0.6623]
[1730719844700,4.04285,2473.5,2473.2,0.6623]
[1730719844837,4.04313,2473.4,2473.2,0.6623]
[1730719845053,4.04285,2473.5,2473.2,0.6623]
[1730719845233,4.0427,2473.6,2473.3,0.6623]
[1730719845982,4.04261,2473.7,2473.3,0.6623]
[1730719846347,4.04293,2473.5,2473.3,0.6623]
[1730719846553,4.04279,2473.6,2473.3,0.6623]
[1730719847078,8.08562,2473.6,2473.3,0.6623]
[1730719847396,8.08428,2474.0,2473.5,4.70511]
[1730719847682,4.04241,2473.8,2473.5,0.74314363]
[1730719847878,4.042,2474.1,2473.5,0.6623]
[1730719848064,4.042,2474.1,2473.5,1.59744208]
[1730719848247,4.04221,2473.9,2473.5,1.59744208]
[1730719848454,4.04211,2474.0,2473.6,0.6623]
[1730719848855,4.04221,2473.9,2473.6,0.6623]
[1730719849037,4.04252,2473.7,2473.6,0.6623]
[1730719849240,4.04294,2473.5,2473.2,0.6623]
[1730719849571,0.7961,2474.0,2472.9,0.6623]
[1730719849572,4.04352,2473.1,2472.9,0.6623]
[1730719850441,4.04263,2473.7,2473.1,4.04347]
[1730719850642,3.0,2473.8,2473.2,0.74315701]
[1730719850938,4.04279,2473.6,2473.2,0.74315701]
[1730719851183,4.04286,2473.5,2473.2,0.74315701]
[1730719851374,4.04286,2473.5,2473.2,0.6623]
[1730719851786,4.04304,2473.4,2473.2,0.6623]
[1730719851967,4.04318,2473.3,2473.2,0.6623]
[1730719852172,4.04303,2473.4,2473.2,0.6623]
[1730719852586,4.04302,2473.4,2473.2,0.6623]
[1730719853995,8.08585,2473.5,2473.2,0.6623]
[1730719854198,4.04302,2473.4,2473.2,0.6623]
[1730719854500,4.04289,2473.5,2473.2,0.6623]
[1730719854701,4.04285,2473.6,2473.2,0.6623]
[1730719855000,4.04303,2473.4,2473.2,0.6623]
[1730719855382,8.0857,2473.6,2473.2,0.6623]
[1730719855697,4.04285,2473.6,2473.2,0.6623]
[1730719855885,8.08562,2473.6,2473.2,0.6623]
[1730719856088,4.04277,2473.6,2473.2,0.6623]
[1730719856289,4.04286,2473.5,2473.2,0.6623]
[1730719856607,7.04245,2473.8,2473.3,3.91797274]
[1730719856754,3.0,2474.1,2473.3,3.83711429]
[1730719856956,4.04292,2473.5,2473.3,3.83711429]
[1730719857274,4.04292,2473.5,2473.2,1.92905138]
[1730719857474,4.04292,2473.5,2473.3,0.18789851]
[1730719857674,4.04292,2473.5,2473.2,0.6623]
[1730719857873,4.04292,2473.5,2473.3,0.18790266]
[1730719858076,4.04292,2473.5,2473.2,0.6623]
[1730719858377,4.04292,2473.5,2473.3,0.18790262]
[1730719858585,4.04292,2473.5,2473.4,0.18790262]
[1730719858800,4.04292,2473.5,2473.2,0.6623]
[1730719859105,4.04292,2473.5,2473.3,0.18795656]
[1730719859289,4.04292,2473.5,2473.2,0.6623]
[1730719859602,4.04292,2473.5,2473.3,0.18801732]
[1730719859816,4.85149,2473.5,2473.4,0.18801732]
[1730719860107,4.04367,2473.0,2472.9,0.96318262]
[1730719860272,4.04367,2473.0,2472.9,1.15122351]
[1730719860603,4.04341,2473.2,2472.9,1.15122351]
[1730719860758,4.04341,2473.2,2473.0,0.48892351]
[1730719860955,4.04341,2473.2,2473.1,0.18804089]
[1730719861402,4.04341,2473.2,2473.1,0.48921163]
[1730719863195,4.04319,2473.3,2473.1,0.48921163]
[1730719863389,4.04319,2473.3,2473.0,3.83711429]
[1730719863390,4.04319,2473.3,2473.2,0.48921163]
[1730719864106,4.04313,2473.4,2473.2,1.15151163]
[1730719864270,11.08629,2473.4,2473.2,0.6623]
[1730719864468,4.04318,2473.3,2473.2,0.6623]
[1730719864760,4.04318,2473.3,2473.2,1.53055918]
[1730719864965,4.04302,2473.4,2473.2,1.53055918]
[1730719865289,4.04302,2473.4,2473.3,0.49073311]
[1730719865458,7.04302,2473.4,2473.3,0.86864358]
[1730719865902,7.85822,2473.4,2473.3,0.86864358]
[1730719866072,9.048327,2473.4,2473.3,0.86864358]
[1730719866886,9.048327,2473.4,2473.3,0.49073311]
[1730719866887,9.598327,2473.4,2473.3,0.49073311]
[1730719867267,9.598327,2473.4,2473.3,0.869123]
[1730719867472,9.598327,2473.4,2473.3,0.8691206]
[1730719867681,5.005307,2473.4,2472.8,0.74317092]
[1730719867990,4.04318,2473.3,2473.1,0.31537513]
[1730719868188,4.04318,2473.3,2473.2,1.84796158]
[1730719869495,7.04305,2473.4,2473.2,1.53258645]
[1730719869829,4.04318,2473.3,2473.2,0.6623]
[1730719870022,4.04299,2473.5,2473.2,1.98383987]
[1730719870316,7.0428,2473.6,2473.3,0.87159844]
[1730719870488,7.0428,2473.6,2473.2,1.19310225]
[1730719870489,4.04287,2473.5,2473.4,0.87159844]
[1730719871123,4.04287,2473.5,2473.2,1.19310225]
[1730719871274,4.04287,2473.5,2473.3,0.87191517]
[1730719871479,4.04287,2473.5,2473.4,0.87191517]
[1730719874384,4.04287,2473.5,2473.2,0.6623]
[1730719874584,4.04305,2473.4,2473.3,0.49341599]
[1730719874829,4.04305,2473.4,2473.3,0.87300603]
[1730719875032,4.04286,2473.5,2473.3,0.87300603]
[1730719875320,4.04286,2473.5,2473.4,0.87300603]
[1730719875625,4.04263,2473.7,2473.4,0.87300603]
[1730719875798,7.04231,2473.9,2473.6,4.49941429]
[1730719875799,4.04228,2473.9,2473.6,4.49941429]
[1730719876126,4.04202,2474.1,2473.7,0.87300603]
[1730719876288,4.04204,2474.0,2473.8,0.87300603]
[1730719876484,4.04189,2474.1,2473.9,0.87300603]
[1730719876726,4.04178,2474.2,2474.0,0.87300603]
[1730719876907,4.04187,2474.1,2473.6,8.54202429]
[1730719877221,4.04217,2474.0,2473.7,0.87271506]
[1730719877422,4.04217,2474.0,2473.8,0.87271506]
[1730719877721,4.04187,2474.1,2473.9,0.87271506]
[1730719877890,4.04187,2474.1,2473.8,0.08083815]
[1730719878080,4.04187,2474.1,2474.0,0.31614105]
[1730719878282,4.04187,2474.1,2474.0,1.18854116]
[1730719878522,4.04164,2474.3,2474.0,1.18854116]
[1730719878761,4.04179,2474.2,2474.1,0.87240011]
[1730719878888,4.04164,2474.3,2474.1,0.87240011]
[1730719879081,4.04164,2474.3,2474.2,0.87240011]
[1730719879400,4.929473,2474.3,2474.2,0.87240011]
[1730719880599,4.929473,2474.3,2474.2,0.49307354]
[1730719882125,4.929473,2474.3,2474.2,0.18963495]
[1730719884739,4.04207,2474.0,2473.8,0.08083749]
[1730719885051,4.04207,2474.0,2473.7,0.6623]
[1730719885052,4.04207,2474.0,2473.9,0.49334517]
[1730719886639,4.850464,2474.0,2473.9,0.49334517]
[1730719886821,4.850464,2474.0,2473.9,0.18973945]
[1730719887029,4.04316,2473.4,2473.1,0.6623]
[1730719887227,4.04316,2473.4,2473.2,0.49328128]
[1730719887228,4.04314,2473.4,2473.2,0.49328128]
[1730719887540,4.04303,2473.4,2473.3,0.49327669]
[1730719889847,4.04303,2473.4,2473.3,0.18971311]
[1730719892315,4.04288,2473.5,2473.3,0.18971311]
[1730719892316,8.08584,2473.5,2473.3,0.18971311]
[1730719892517,8.08584,2473.5,2473.1,4.70579]
[1730719892518,4.04288,2473.5,2473.2,0.30361127]
[1730719892716,4.04301,2473.4,2473.3,0.18973964]
[1730719893116,4.85791,2473.4,2472.9,0.6623]
[1730719893438,4.85791,2473.4,2473.0,0.49339127]
[1730719893439,4.04332,2473.3,2473.0,0.49339127]
[1730719893614,4.04332,2473.3,2473.1,0.18975718]
[1730719893816,4.04332,2473.3,2473.0,0.30363074]
[1730719893817,4.04341,2473.2,2473.0,0.30363074]
[1730719894012,4.04332,2473.3,2473.1,0.18975727]
[1730719894256,4.04332,2473.3,2473.0,0.38449029]
[1730719894548,4.04319,2473.3,2473.1,0.18975352]
[1730719894764,4.04319,2473.3,2472.9,0.6623]
[1730719894931,4.04319,2473.3,2473.0,0.18975928]
[1730719895127,4.04319,2473.3,2473.1,0.18975928]
[1730719895346,4.04319,2473.3,2473.0,0.38451616]
[1730719895541,0.7769,2473.6,2473.1,0.18976808]
[1730719895852,3.0,2473.8,2473.2,0.18977024]
[1730719896062,4.04286,2473.5,2473.3,0.6623]
[1730719896251,4.04315,2473.4,2473.1,0.6623]
[1730719896633,4.04315,2473.4,2473.2,0.18978526]
[1730719896972,8.9264694,2473.8,2473.1,0.6623]
[1730719896973,4.04325,2473.3,2473.1,0.6623]
[1730719897257,4.04325,2473.3,2472.9,0.30368452]
[1730719897258,4.04367,2473.1,2472.9,0.30368452]
[1730719897463,4.04336,2473.2,2473.0,0.18982341]
[1730719897669,4.04336,2473.2,2473.1,0.18982341]
[1730719897872,4.04336,2473.2,2472.9,0.08086713]
[1730719898031,4.04336,2473.2,2473.0,0.18982344]
[1730719898237,4.04336,2473.2,2473.1,0.18982882]
[1730719898666,4.04352,2473.1,2472.8,0.6623]
[1730719898981,4.04369,2473.0,2472.9,0.18983492]
[1730719900136,4.04386,2472.9,2472.7,0.30374265]
[1730719900333,4.04386,2472.9,2472.8,0.18979418]
[1730719901785,4.04407,2472.8,2472.6,0.6623]
[1730719902084,4.04422,2472.7,2472.4,4.49941429]
[1730719902239,4.0444,2472.6,2472.5,0.49332919]
[1730719902435,4.0444,2472.6,2472.5,0.1897333]
[1730719902663,0.7766,2472.9,2472.5,0.1897333]
[1730719902881,0.7766,2472.9,2472.4,0.6623]
[1730719902882,4.04432,2472.6,2472.4,0.6623]
[1730719903182,4.04432,2472.6,2472.5,0.18971843]
[1730719904184,4.04465,2472.5,2472.2,0.3034941]